fUSD/lending_fUSD_20250608
["ID","MTS","AMOUNT","RATE_DAILY","PERIOD"]
[364958598,1749354633009,-218.20420264,0.000186,2]
[364958599,1749354633018,-216.87345913,0.000186,2]
[364958600,1749354633029,-283.12654087,0.000186,2]
[364958601,1749354633039,-150.0,0.000186,2]
[364958602,1749354633050,-500.0,0.000186,2]
[364958603,1749354633059,-150.0,0.00018627,2]
[364958604,1749354633068,-500.0,0.00018627,2]
[364958605,1749354633078,-553.35728538,0.00018627,2]
[364958606,1749354633087,-500.0,0.00018627,2]
[364958607,1749354633096,-150.0,0.00018655,2]
[364958608,1749354633106,-500.0,0.00018655,2]
[364958609,1749354633115,-500.0,0.00018655,2]
[364958610,1749354633124,-150.0,0.00018682,2]
[364958611,1749354633133,-500.0,0.00018682,2]
[364958612,1749354633142,-500.0,0.00018682,2]
[364958613,1749354633152,-218.16163196,0.0001871,2]
[364958614,1749354633161,-500.0,0.0001871,2]
[364958615,1749354633170,-500.0,0.0001871,2]
[364958616,1749354633186,-500.0,0.00018737,2]
[364958617,1749354633195,-522.89139515,0.00018737,2]
[364958618,1749354633205,-500.0,0.00018764,2]
[364958619,1749354633215,-500.0,0.0001878,2]
[364958620,1749354633224,-500.0,0.0001878,2]
[364958621,1749354633234,-150.0,0.0001878,2]
[364958622,1749354633243,-500.0,0.0001878,2]
[364958623,1749354633252,-161.43049576,0.0001878,2]
[364958624,1749354633262,-150.0,0.0001878,2]
[364958625,1749354633271,-150.0,0.0001878,2]
[364958626,1749354633281,-454.65,0.00018781,2]
[364958627,1749354633290,-454.65,0.00018781,2]
[364958628,1749354633301,-454.65,0.00018781,2]
[364958629,1749354633310,-150.0,0.00018781,2]
[364958630,1749354633320,-150.0,0.00018781,2]
[364958631,1749354633330,-150.0,0.00018781,2]
[364958632,1749354633339,-150.0,0.00018781,2]
[364958633,1749354633349,-500.0,0.00018792,2]
[364958634,1749354633358,-500.0,0.00018807,2]
[364958635,1749354633367,-500.0,0.00018807,2]
[364958636,1749354633377,-253.38749854,0.00018807,2]
[364958637,1749354633387,-500.0,0.00018807,2]
[364958638,1749354633397,-150.0,0.00018807,2]
[364958639,1749354633407,-150.0,0.00018807,2]
[364958640,1749354633417,-500.0,0.00018819,2]
[364958641,1749354633427,-384.58181763,0.00018835,2]
[364958642,1749354633436,-500.0,0.00018835,2]
[364958643,1749354633447,-500.0,0.00018835,2]
[364958644,1749354633456,-203.89834047,0.00018835,2]
[364958645,1749354633465,-152.79137041,0.00018835,2]
[364958646,1749354633475,-500.0,0.00018847,2]
[364958647,1749354633484,-500.0,0.00018862,2]
[364958648,1749354633493,-500.0,0.00018862,2]
[364958649,1749354633503,-301.28515732,0.00018874,2]
[364958650,1749354633512,-500.0,0.0001889,2]
[364958651,1749354633522,-305.18477417,0.0001889,2]
[364958652,1749354633534,-1957.856,0.00018898,2]
[364958653,1749354633544,-151.74441894,0.00018898,2]
[364958654,1749354633554,-300.0,0.00018898,2]
[364958655,1749354633564,-300.0,0.00018898,2]
[364958656,1749354633573,-300.0,0.00018898,2]
[364958657,1749354633583,-300.0,0.00018898,2]
[364958658,1749354633592,-300.0,0.00018898,2]
[364958659,1749354633602,-300.0,0.00018898,2]
[364958660,1749354633612,-1000.0,0.00018898,2]
[364958661,1749354633622,-300.0,0.00018898,2]
[364958662,1749354633631,-300.0,0.00018898,2]
[364958663,1749354633641,-300.0,0.00018898,2]
[364958664,1749354633650,-300.0,0.00018898,2]
[364958665,1749354633660,-300.0,0.00018898,2]
[364958666,1749354633671,-300.0,0.00018898,2]
[364958667,1749354633681,-300.0,0.00018898,2]
[364958668,1749354633690,-300.0,0.00018898,2]
[364958669,1749354633700,-500.0,0.00018898,2]
[364958670,1749354633709,-300.0,0.00018898,2]
[364958671,1749354633719,-500.0,0.00018898,2]
[364958672,1749354633728,-328.07323086,0.00018898,2]
[364958673,1749354633743,-500.0,0.00018898,2]
[364958674,1749354633753,-500.0,0.00018898,2]
[364958675,1749354633763,-500.0,0.00018898,2]
[364958676,1749354633774,-500.0,0.00018898,2]
[364958677,1749354633784,-500.0,0.00018898,2]
[364958678,1749354633794,-151.0,0.00018898,2]
[364958679,1749354633804,-500.0,0.00018898,2]
[364958680,1749354633815,-500.0,0.00018898,2]
[364958681,1749354633824,-500.0,0.00018898,2]
[364958682,1749354633835,-500.0,0.00018898,2]
[364958683,1749354633845,-500.0,0.00018898,2]
[364958684,1749354633855,-500.0,0.00018898,2]
[364958685,1749354633865,-500.0,0.00018898,2]
[364958686,1749354633875,-619.55684694,0.00018898,2]
[364958687,1749354633884,-207.4,0.00018898,2]
[364958688,1749354633895,-200.0,0.000189,6]
[364958689,1749354633904,-2063.40144897,0.000189,2]
[364958690,1749354633915,-529.33848394,0.00018917,2]
[364958691,1749354633925,-2030.296672,0.00018953,2]
[364958692,1749354633935,-3468.05983362,0.00019,2]
[364958693,1749354633945,-10177.56670654,0.00019,2]
[364958694,1749354634073,590.9,0.00015717,2]
[364958695,1749354637978,-590.9,0.00017981,2]
[364958696,1749354637991,-415.7886836,0.00017999,2]
[364958697,1749354638144,-84.2113164,0.00017999,2]
[364958698,1749354638156,-500.0,0.00017999,2]
[364958699,1749354638165,-443.7601616,0.00017999,2]
[364958700,1749354638175,-211.22896538,0.00017999,2]
[364958701,1749354638185,-500.0,0.00017999,2]
[364958702,1749354638196,-500.0,0.00017999,2]
[364958703,1749354638205,-500.0,0.00017999,2]
[364958704,1749354638216,-95.7220054,0.00017999,2]
[364958705,1749354640384,-404.2779946,0.00017999,2]
[364958706,1749354640394,-500.0,0.00017999,2]
[364958707,1749354640404,-500.0,0.00017999,2]
[364958708,1749354640415,-500.0,0.00017999,2]
[364958709,1749354640428,-628.91329346,0.00019,2]
[364958710,1749354640439,-10806.48,0.00019,2]
[364958711,1749354640450,-6498.70501305,0.00019,2]
[364958712,1749354640469,-735.61591342,0.00019,2]
[364958722,1749354643097,-3572.15907353,0.00019,2]
[364958723,1749354643107,-10806.48,0.00019,2]
[364958724,1749354643116,-18169.76617566,0.00019,2]
[364958725,1749354643126,-1041.68,0.00019,2]
[364958726,1749354643136,-1005.87069572,0.00019,7]
[364958727,1749354643145,-1018.69,0.00019,2]
[364958728,1749354643155,-250.0,0.00019,2]
[364958729,1749354643164,-2105.41764886,0.00019008,2]
[364958730,1749354643174,-2063.40144894,0.00019011,2]
[364958731,1749354643183,-2183.31810187,0.00019063,2]
[364958732,1749354643193,-212.88782906,0.00019073,2]
[364958733,1749354643202,-1000.0,0.00019077,2]
[364958734,1749354643212,-191.68430118,0.00019078,2]
[364958735,1749354643222,-2264.10087164,0.00019118,2]
[364958736,1749354643232,-2063.40144894,0.00019122,2]
[364958737,1749354643242,-11899.49632366,0.0001915,2]
[364958738,1749354643252,-191.68430118,0.00019169,2]
[364958739,1749354643262,-500.0,0.00019173,2]
[364958740,1749354643271,-500.0,0.00019173,2]
[364958741,1749354643281,-500.0,0.00019173,2]
[364958742,1749354643291,-341.0898556,0.00019173,2]
[364958743,1749354643301,-510.48800906,0.00019173,2]
[364958744,1749354643310,-517.62605896,0.00019173,2]
[364958745,1749354643320,-500.0,0.00019173,2]
[364958746,1749354643331,-500.0,0.00019173,2]
[364958747,1749354643341,-2347.87260389,0.00019173,2]
[364958748,1749354643351,-254.90542136,0.00019177,2]
[364958749,1749354643360,-186.85060035,0.00019177,2]
[364958750,1749354643370,-178.43379495,0.00019177,2]
[364958751,1749354643380,-3000.786698,0.00019178,2]
[364958752,1749354643390,-161.171221,0.00019178,2]
[364958753,1749354643399,-500.0,0.00019178,2]
[364958754,1749354643409,-566.7865747,0.00019178,2]
[364958755,1749354643418,-480.0,0.00019178,2]
[364958756,1749354643427,-480.0,0.00019178,2]
[364958757,1749354643437,-480.0,0.00019178,2]
[364958758,1749354643446,-480.0,0.00019178,2]
[364958759,1749354643456,-480.0,0.00019178,2]
[364958760,1749354643466,-480.0,0.00019178,2]
[364958761,1749354643475,-480.0,0.00019178,2]
[364958762,1749354643485,-480.0,0.00019178,2]
[364958763,1749354643495,-480.0,0.00019178,2]
[364958764,1749354643505,-480.0,0.00019178,2]
[364958765,1749354643515,-500.0,0.00019178,2]
[364958766,1749354643524,-500.0,0.00019178,2]
[364958767,1749354643534,-480.0,0.00019178,2]
[364958768,1749354643548,-480.0,0.00019178,2]
[364958769,1749354643558,-480.0,0.00019178,2]
[364958770,1749354643567,-480.0,0.00019178,2]
[364958771,1749354643577,-480.0,0.00019178,2]
[364958772,1749354643586,-480.0,0.00019178,2]
[364958773,1749354643596,-480.0,0.00019178,2]
[364958774,1749354643606,-753.39,0.00019178,2]
[364958775,1749354643615,-257.54581999,0.00019178,2]
[364958776,1749354643625,-480.0,0.00019178,2]
[364958777,1749354643634,-480.0,0.00019178,2]
[364958778,1749354643643,-480.0,0.00019178,2]
[364958779,1749354643652,-480.0,0.00019178,2]
[364958780,1749354643662,-480.0,0.00019178,2]
[364958781,1749354643672,-480.0,0.00019178,2]
[364958782,1749354643682,-480.0,0.00019178,2]
[364958783,1749354643691,-480.0,0.00019178,2]
[364958784,1749354643700,-480.0,0.00019178,2]
[364958785,1749354643710,-480.0,0.00019178,2]
[364958786,1749354643719,-3473.89552,0.00019178,2]
[364958787,1749354643729,-480.0,0.00019178,2]
[364958788,1749354643739,-529.44479982,0.00019178,2]
[364958789,1749354643749,-598.13699003,0.00019178,2]
[364958790,1749354643758,-480.0,0.00019178,2]
[364958791,1749354643768,-480.0,0.00019178,2]
[364958792,1749354643778,-503.79248939,0.00019178,2]
[364958793,1749354643787,-515.90867093,0.00019178,2]
[364958794,1749354643797,-480.0,0.00019178,2]
[364958795,1749354643807,-480.0,0.00019178,2]
[364958796,1749354643816,-495.8449464,0.00019178,2]
[364958797,1749354643826,-480.0,0.00019178,2]
[364958798,1749354643835,-480.0,0.00019178,2]
[364958799,1749354643845,-480.0,0.00019178,2]
[364958800,1749354643857,-480.0,0.00019178,2]
[364958801,1749354643867,-480.0,0.00019178,2]
[364958802,1749354643876,-480.0,0.00019178,2]
[364958803,1749354643885,-480.0,0.00019178,2]
[364958804,1749354643895,-480.0,0.00019178,2]
[364958805,1749354643906,-480.0,0.00019178,2]
[364958806,1749354643916,-480.0,0.00019178,2]
[364958807,1749354643925,-480.0,0.00019178,2]
[364958808,1749354643936,-480.0,0.00019178,2]
[364958809,1749354643946,-491.25461718,0.00019178,2]
[364958810,1749354643955,-480.0,0.00019178,2]
[364958811,1749354643967,-468.6343245,0.00019178,2]
[364958812,1749354643977,-494.34,0.00019178,2]
[364958813,1749354643987,-480.0,0.00019178,2]
[364958814,1749354643997,-480.0,0.00019178,2]
[364958815,1749354644205,-480.0,0.00019178,2]
[364958816,1749354644216,-312.28118946,0.00019178,2]
[364958817,1749354644226,-480.0,0.00019178,2]
[364958818,1749354644236,-480.0,0.00019178,2]
[364958819,1749354644245,-480.0,0.00019178,2]
[364958820,1749354644254,-480.0,0.00019178,2]
[364958821,1749354644264,-480.0,0.00019178,2]
[364958822,1749354644274,-480.0,0.00019178,2]
[364958823,1749354644284,-480.0,0.00019178,2]
[364958824,1749354644293,-480.0,0.00019178,2]
[364958825,1749354644303,-480.0,0.00019178,2]
[364958826,1749354644313,-480.0,0.00019178,2]
[364958827,1749354644323,-480.0,0.00019178,2]
[364958828,1749354644333,-480.0,0.00019178,2]
[364958829,1749354644343,-480.0,0.00019178,2]
[364958830,1749354644353,-386.8870659,0.00019178,2]
[364958831,1749354644362,-480.0,0.00019178,2]
[364958832,1749354644372,-460.0,0.00019178,2]
[364958833,1749354644381,-480.0,0.00019178,2]
[364958834,1749354644391,-480.0,0.00019178,2]
[364958835,1749354644401,-480.0,0.00019178,2]
[364958836,1749354644410,-480.0,0.00019178,2]
[364958837,1749354644420,-480.0,0.00019178,2]
[364958838,1749354644430,-460.0,0.00019178,2]
[364958839,1749354644440,-460.0,0.00019178,2]
[364958840,1749354644450,-480.0,0.00019178,2]
[364958841,1749354644459,-480.0,0.00019178,2]
[364958842,1749354644469,-480.0,0.00019178,2]
[364958843,1749354644479,-460.0,0.00019178,2]
[364958844,1749354644489,-380.0,0.00019178,2]
[364958845,1749354644499,-480.0,0.00019178,2]
[364958846,1749354644508,-460.0,0.00019178,2]
[364958847,1749354644519,-480.0,0.00019178,2]
[364958848,1749354644532,-480.0,0.00019178,2]
[364958849,1749354644547,-480.0,0.00019178,2]
[364958850,1749354644557,-1068.07,0.00019178,2]
[364958851,1749354644566,-460.0,0.00019178,2]
[364958852,1749354644576,-480.0,0.00019178,2]
[364958853,1749354644587,-460.0,0.00019178,2]
[364958854,1749354644597,-480.0,0.00019178,2]
[364958855,1749354644607,-480.0,0.00019178,2]
[364958856,1749354644618,-480.0,0.00019178,2]
[364958857,1749354644629,-480.0,0.00019178,2]
[364958858,1749354644641,-480.0,0.00019178,2]
[364958859,1749354644651,-460.0,0.00019178,2]
[364958860,1749354644660,-374.0,0.00019178,2]
[364958861,1749354644671,-480.0,0.00019178,2]
[364958862,1749354644681,-480.0,0.00019178,2]
[364958863,1749354644692,-380.0,0.00019178,2]
[364958864,1749354644701,-480.0,0.00019178,2]
[364958865,1749354644711,-460.0,0.00019178,2]
[364958866,1749354644721,-480.0,0.00019178,2]
[364958867,1749354644730,-460.0,0.00019178,2]
[364958868,1749354644742,-480.0,0.00019178,2]
[364958869,1749354644751,-480.0,0.00019178,2]
[364958870,1749354644761,-480.0,0.00019178,2]
[364958871,1749354644770,-480.0,0.00019178,2]
[364958872,1749354644780,-380.0,0.00019178,2]
[364958873,1749354644789,-480.0,0.00019178,2]
[364958874,1749354644799,-458.47504467,0.00019178,2]
[364958875,1749354644809,-380.0,0.00019178,2]
[364958876,1749354644818,-193.18706524,0.00019178,2]
[364958877,1749354644828,-480.0,0.00019178,2]
[364958878,1749354644838,-480.0,0.00019178,2]
[364958879,1749354644847,-365.57994766,0.00019178,2]
[364958880,1749354644857,-480.0,0.00019178,2]
[364958881,1749354644866,-484.86361068,0.00019178,2]
[364958882,1749354644876,-480.0,0.00019178,2]
[364958883,1749354644886,-480.0,0.00019178,2]
[364958884,1749354644895,-480.0,0.00019178,2]
[364958885,1749354644906,-480.0,0.00019178,2]
[364958886,1749354644915,-480.0,0.00019178,2]
[364958887,1749354644925,-480.0,0.00019178,2]
[364958888,1749354644934,-460.0,0.00019178,2]
[364958889,1749354644944,-480.0,0.00019178,2]
[364958890,1749354644953,-389.15734708,0.00019178,2]
[364958891,1749354644963,-480.0,0.00019178,2]
[364958892,1749354644973,-480.0,0.00019178,2]
[364958893,1749354644982,-480.0,0.00019178,2]
[364958894,1749354644992,-480.0,0.00019178,2]
[364958895,1749354645001,-480.0,0.00019178,2]
[364958896,1749354645011,-480.0,0.00019178,2]
[364958897,1749354645020,-480.0,0.00019178,2]
[364958898,1749354645029,-471.93142917,0.00019178,2]
[364958899,1749354645039,-482.91132721,0.00019178,2]
[364958900,1749354645049,-480.0,0.00019178,2]
[364958901,1749354645059,-480.0,0.00019178,2]
[364958902,1749354645068,-480.0,0.00019178,2]
[364958903,1749354645077,-497.06792344,0.00019178,2]
[364958904,1749354645087,-460.0,0.00019178,2]
[364958905,1749354645096,-480.0,0.00019178,2]
[364958906,1749354645106,-480.0,0.00019178,2]
[364958907,1749354645115,-480.0,0.00019178,2]
[364958908,1749354645125,-380.0,0.00019178,2]
[364958909,1749354645134,-480.0,0.00019178,2]
[364958910,1749354645143,-495.79690858,0.00019178,2]
[364958911,1749354645153,-480.0,0.00019178,2]
[364958912,1749354645163,-480.0,0.00019178,2]
[364958913,1749354645173,-492.86801785,0.00019178,2]
[364958914,1749354645183,-480.0,0.00019178,2]
[364958915,1749354645193,-460.0,0.00019178,2]
[364958916,1749354645202,-480.0,0.00019178,2]
[364958917,1749354645212,-480.0,0.00019178,2]
[364958918,1749354645221,-480.0,0.00019178,2]
[364958919,1749354645231,-489.67346389,0.00019178,2]
[364958920,1749354645241,-480.0,0.00019178,2]
[364958921,1749354645251,-480.0,0.00019178,2]
[364958922,1749354645260,-480.0,0.00019178,2]
[364958923,1749354645270,-480.0,0.00019178,2]
[364958924,1749354645280,-480.0,0.00019178,2]
[364958925,1749354645290,-315.10238535,0.00019178,2]
[364958926,1749354645303,-480.0,0.00019178,2]
[364958927,1749354645312,-480.0,0.00019178,2]
[364958928,1749354645322,-460.0,0.00019178,2]
[364958929,1749354645331,-487.54416648,0.00019178,2]
[364958930,1749354645341,-484.12711778,0.00019178,2]
[364958931,1749354645350,-480.0,0.00019178,2]
[364958932,1749354645359,-480.0,0.00019178,2]
[364958933,1749354645369,-504.12587919,0.00019178,2]
[364958934,1749354645378,-480.0,0.00019178,2]
[364958935,1749354645387,-494.34379139,0.00019178,2]
[364958936,1749354645396,-494.55163852,0.00019178,2]
[364958937,1749354645406,-490.88301061,0.00019178,2]
[364958938,1749354645415,-550.0,0.00019178,2]
[364958939,1749354645424,-1000.0,0.00019178,2]
[364958940,1749354645434,-480.0,0.00019178,2]
[364958941,1749354645443,-480.0,0.00019178,2]
[364958942,1749354645452,-478.65396872,0.00019178,2]
[364958943,1749354645461,-489.24669395,0.00019178,2]
[364958944,1749354645470,-505.92250941,0.00019178,2]
[364958945,1749354645479,-480.0,0.00019178,2]
[364958946,1749354645489,-480.0,0.00019178,2]
[364958947,1749354645498,-480.0,0.00019178,2]
[364958948,1749354645507,-480.0,0.00019178,2]
[364958949,1749354645516,-480.0,0.00019178,2]
[364958950,1749354645525,-480.0,0.00019178,2]
[364958951,1749354645536,-484.79921295,0.00019178,2]
[364958952,1749354645548,-484.93803881,0.00019178,2]
[364958953,1749354645557,-480.0,0.00019178,2]
[364958954,1749354645567,-480.0,0.00019178,2]
[364958955,1749354645577,-480.0,0.00019178,2]
[364958956,1749354645586,-496.63241132,0.00019178,2]
[364958957,1749354645595,-491.54964741,0.00019178,2]
[364958958,1749354645605,-487.90811685,0.00019178,2]
[364958959,1749354645614,-480.0,0.00019178,2]
[364958960,1749354645623,-480.0,0.00019178,2]
[364958961,1749354645634,-480.0,0.00019178,2]
[364958962,1749354645643,-484.91834607,0.00019178,2]
[364958963,1749354645653,-480.0,0.00019178,2]
[364958965,1749354645662,-394.04540345,0.00019178,2]
[364958966,1749354645672,-480.0,0.00019178,2]
[364958967,1749354645681,-279.73949774,0.00019178,2]
[364958968,1749354645691,-422.36415093,0.00019178,2]
[364958969,1749354645700,-529.4499573,0.00019178,2]
[364958970,1749354645709,-480.0,0.00019178,2]
[364958971,1749354645719,-480.0,0.00019178,2]
[364958972,1749354645728,-480.0,0.00019178,2]
[364958973,1749354645738,-480.0,0.00019178,2]
[364958974,1749354645747,-190.88155979,0.00019178,2]
[364958975,1749354645757,-480.0,0.00019178,2]
[364958976,1749354645766,-480.0,0.00019178,2]
[364958977,1749354645775,-480.0,0.00019178,2]
[364958978,1749354645784,-480.0,0.00019178,2]
[364958979,1749354645794,-497.10356645,0.00019178,2]
[364958980,1749354645804,-480.0,0.00019178,2]
[364958981,1749354645813,-480.0,0.00019178,2]
[364958982,1749354645822,-480.0,0.00019178,2]
[364958983,1749354645832,-480.0,0.00019178,2]
[364958984,1749354645841,-557.73,0.00019178,2]
[364958985,1749354645850,-480.0,0.00019178,2]
[364958986,1749354645859,-480.0,0.00019178,2]
[364958987,1749354645868,-500.0,0.00019178,2]
[364958988,1749354645877,-500.0,0.00019178,2]
[364958989,1749354645887,-480.0,0.00019178,2]
[364958990,1749354645895,-492.06831339,0.00019178,2]
[364958991,1749354645905,-495.78365683,0.00019178,2]
[364958992,1749354645926,-490.25279754,0.00019178,2]
[364958993,1749354645935,-499.49338523,0.00019178,2]
[364958994,1749354645944,-480.0,0.00019178,2]
[364958995,1749354645953,-480.0,0.00019178,2]
[364958996,1749354645963,-504.05868203,0.00019178,2]
[364958997,1749354645972,-480.0,0.00019178,2]
[364958998,1749354645981,-485.45334031,0.00019178,2]
[364958999,1749354645992,-480.0,0.00019178,2]
[364959000,1749354646018,-487.35754537,0.00019178,2]
[364959001,1749354646029,-342.66676352,0.00019178,2]
[364959002,1749354646039,-480.0,0.00019178,2]
[364959003,1749354646048,-485.80873953,0.00019178,2]
[364959004,1749354646057,-480.0,0.00019178,2]
[364959005,1749354646067,-496.76603192,0.00019178,2]
[364959006,1749354646077,-487.72497555,0.00019178,2]
[364959007,1749354646086,-480.0,0.00019178,2]
[364959008,1749354646095,-480.0,0.00019178,2]
[364959009,1749354646104,-494.29044495,0.00019178,2]
[364959010,1749354646113,-404.66408291,0.00019178,2]
[364959011,1749354646122,-480.0,0.00019178,2]
[364959012,1749354646131,-504.35325166,0.00019178,2]
[364959013,1749354646140,-345.45609493,0.00019178,2]
[364959014,1749354646150,-599.01964762,0.00019178,2]
[364959015,1749354646159,-480.0,0.00019178,2]
[364959016,1749354646168,-482.56385174,0.00019178,2]
[364959017,1749354646177,-892.45,0.00019178,2]
[364959018,1749354646186,-508.35889984,0.00019178,2]
[364959019,1749354646195,-480.0,0.00019178,2]
[364959020,1749354646205,-480.0,0.00019178,2]
[364959021,1749354646215,-480.0,0.00019178,2]
[364959022,1749354646224,-480.0,0.00019178,2]
[364959023,1749354646234,-480.0,0.00019178,2]
[364959024,1749354646243,-480.0,0.00019178,2]
[364959025,1749354646253,-488.61431489,0.00019178,2]
[364959026,1749354646262,-371.68969009,0.00019178,2]
[364959027,1749354646271,-480.0,0.00019178,2]
[364959028,1749354646280,-924.67,0.00019178,2]
[364959029,1749354646289,-480.0,0.00019178,2]
[364959030,1749354646298,-250.0,0.00019178,2]
[364959031,1749354646308,-480.0,0.00019178,2]
[364959032,1749354646317,-480.0,0.00019178,2]
[364959033,1749354646326,-480.0,0.00019178,2]
[364959034,1749354646336,-480.0,0.00019178,2]
[364959035,1749354646346,-480.0,0.00019178,2]
[364959036,1749354646355,-480.0,0.00019178,2]
[364959037,1749354646365,-791.51,0.00019178,2]
[364959038,1749354646374,-480.0,0.00019178,2]
[364959039,1749354646384,-480.0,0.00019178,2]
[364959040,1749354646393,-480.0,0.00019178,2]
[364959041,1749354646403,-480.0,0.00019178,2]
[364959042,1749354646412,-480.0,0.00019178,2]
[364959043,1749354646422,-480.0,0.00019178,2]
[364959044,1749354646431,-480.0,0.00019178,2]
[364959045,1749354646440,-480.0,0.00019178,2]
[364959046,1749354646451,-480.0,0.00019178,2]
[364959047,1749354646461,-443.17606102,0.00019178,2]
[364959048,1749354646471,-480.0,0.00019178,2]
[364959049,1749354646481,-480.0,0.00019178,2]
[364959050,1749354646491,-480.0,0.00019178,2]
[364959051,1749354646501,-4285.21,0.00019178,2]
[364959052,1749354646510,-480.0,0.00019178,2]
[364959053,1749354646520,-480.0,0.00019178,2]
[364959054,1749354646530,-480.0,0.00019178,2]
[364959055,1749354646539,-480.0,0.00019178,2]
[364959056,1749354646548,-480.0,0.00019178,2]
[364959057,1749354646558,-480.0,0.00019178,2]
[364959058,1749354646568,-480.0,0.00019178,2]
[364959059,1749354646579,-480.0,0.00019178,2]
[364959060,1749354646589,-480.0,0.00019178,2]
[364959061,1749354646598,-480.0,0.00019178,2]
[364959062,1749354646610,-485.55,0.00019178,2]
[364959063,1749354646619,-480.0,0.00019178,2]
[364959064,1749354646629,-498.28,0.00019178,2]
[364959065,1749354646638,-480.0,0.00019178,2]
[364959066,1749354646650,-824.37,0.00019178,2]
[364959067,1749354646660,-480.0,0.00019178,2]
[364959068,1749354646671,-480.0,0.00019178,2]
[364959069,1749354646681,-480.0,0.00019178,2]
[364959070,1749354646691,-1514.39,0.00019178,2]
[364959071,1749354646701,-480.0,0.00019178,2]
[364959072,1749354646711,-480.0,0.00019178,2]
[364959073,1749354646721,-480.0,0.00019178,2]
[364959074,1749354646730,-480.0,0.00019178,2]
[364959075,1749354646740,-1512.85417909,0.00019178,2]
[364959076,1749354647799,-766.95831611,0.00019178,2]
[364959078,1749354853976,530.0,0.000143,5]
[364959087,1749355094502,252.33,0.00017053,2]
[364959122,1749355263025,1031.0,0.00017053,2]
[364959125,1749355320611,2207.4925275,0.00017053,2]
[364959126,1749355320637,4872.74946303,0.00017053,2]
[364959133,1749355416024,127.25053697,0.000165,10]
[364959134,1749355416053,9872.74946303,0.000165,10]
[364959135,1749355421814,10000.0,0.000165,10]
[364959136,1749355427351,10000.0,0.000165,10]
[364959137,1749355432432,10000.0,0.000165,10]
[364959138,1749355437440,10000.0,0.000165,10]
[364959139,1749355446596,6031.0,0.000165,10]
[364959140,1749355469245,2000.0,0.00017,2]
[364959147,1749355481200,204.0,0.00016993,2]
[364959163,1749355670459,327.62,0.00013699,2]
[364959218,1749355832114,-150.0,0.00017941,2]
[364959219,1749355832126,-541.37,0.00018127,2]
[364959220,1749355832138,-150.0,0.00018172,7]
[364959221,1749355832149,-300.0,0.00018185,2]
[364959222,1749355832160,-658.63000001,0.00018185,2]
[364959223,1749355832174,-541.36999999,0.00018185,2]
[364959224,1749355832186,-1494.18000001,0.00018186,2]
[364959225,1749355832323,-4060.14356596,0.00018186,2]
[364959226,1749355832433,-831.84756269,0.00018186,2]
[364959290,1749355838232,-7687.96632128,0.00018186,2]
[364959291,1749355839330,183.05,0.00016712,2]
[364959300,1749355846242,-2592.9234537,0.00018186,2]
[364959301,1749355846344,-529.6,0.00018186,2]
[364959324,1749355880206,602.57,0.00016,2]
[364959348,1749356077875,217.61074234,0.00016479,2]
[364959369,1749356159247,161.21,0.00014308,2]